[Event "GCT Cote d Ivoire Rapid 2019"]
[Site "Abidjan"]
[Date "2019.05.08"]
[Round "1.3"]
[White "Amin, Bassem"]
[Black "Ding, Liren"]
[Result "0-1"]
[ECO "C88"]
[WhiteElo "2683"]
[BlackElo "2786"]
[Annotator "ChessBase"]
[PlyCount "154"]
[EventDate "2019.05.05"]
[EventType "tourn"]
[SourceTitle "playchess.com"]
[Source "ChessBase"]
[SourceQuality "1"]
[TimeMode "Bronstein"]
[TimeControl "1500+10"]

1. e4 {[%emt 0:00:00]} e5 {[%emt 0:00:00]} 2. Nf3 {[%emt 0:00:00]} Nc6 {[%emt 0:00:00]} 3. Bb5 {[%emt 0:00:00]} a6 {[%emt 0:00:00]} 4. Ba4 {[%emt 0:00:00]} Nf6 {[%emt 0:00:00]} 5. O-O {[%emt 0:00:00]} Be7 {[%emt 0:00:00]} 6. Re1 {[%emt 0:00:00]} b5 {[%emt 0:00:00]} 7. Bb3 {[%emt 0:00:00]} O-O {[%emt 0:00:00]} 8. a4 {[%emt 0:00:00]} b4 {[%emt 0:00:00]} 9. d4 {[%emt 0:00:00]} d6 {[%emt 0:00:00]} 10. dxe5 {[%emt 0:00:00]} Nxe5 {[%emt 0:00:00]} 11. Nbd2 {[%emt 0:00:00]} Nfd7 {[%emt 0:00:55]} 12. Nd4 {[%emt 0:00:00]} Bb7 {[%emt 0:01:10]} 13. Bd5 {[%emt 0:00:00]} c6 {[%emt 0:00:35]} 14. Ba2 {[%emt 0:00:00]} Re8 {[%emt 0:00:16]} 15. f4 {[%emt 0:00:05]} Ng6 {[%emt 0:00:12]} 16. c3 {[%emt 0:01:04]} d5 {[%emt 0:01:07]} 17. N2f3 {[%emt 0:00:10]} Bf8 {[%emt 0:02:46]} 18. e5 {[%emt 0:00:52]} c5 {[%emt 0:00:44]} 19. Nf5 {[%emt 0:01:25]} c4 {[%emt 0:00:10]} 20. N5d4 {[%emt 0:02:00]} Nc5 {[%emt 0:05:51]} 21. f5 {[%emt 0:02:59]} Nh4 {[%emt 0:00:10]} 22. Ng5 {[%emt 0:01:04]} h6 {[%emt 0:00:10]} 23. Qh5 {[%emt 0:03:41]} hxg5 {[%emt 0:02:20]} 24. Bxg5 {[%emt 0:00:10]} Qc7 {[%emt 0:00:10]} 25. Qxh4 {[%emt 0:02:28]} Rxe5 {[%emt 0:00:10]} 26. Bf4 {[%emt 0:02:49]} Qe7 {[%emt 0:01:31]} 27. Bg5 {[%emt 0:02:19]} f6 {[%emt 0:01:01]} 28. Rxe5 {[%emt 0:00:10]} Qxe5 {[%emt 0:00:10]} 29. Bf4 {[%emt 0:00:10]} Qe8 {[%emt 0:00:39]} 30. Re1 {[%emt 0:01:17]} Qxa4 {[%emt 0:00:10]} 31. Bb1 {[%emt 0:00:10]} Re8 {[%emt 0:01:59]} 32. Ne6 {[%emt 0:00:23]} bxc3 {[%emt 0:00:35]} 33. bxc3 {[%emt 0:00:49]} Nd3 {[%emt 0:00:14]} 34. Bxd3 {[%emt 0:01:18]} cxd3 {[%emt 0:00:10]} 35. Qg3 {[%emt 0:01:50]} d4 {[%emt 0:00:26]} 36. cxd4 {[%emt 0:00:57]} Qc2 {[%emt 0:00:28]} 37. Qf2 {[%emt 0:00:11]} Bb4 {[%emt 0:01:28]} 38. Rc1 {[%emt 0:00:10]} d2 {[%emt 0:00:21]} 39. Bxd2 {[%emt 0:00:11]} Qxd2 {[%emt 0:00:10]} 40. Qxd2 {[%emt 0:00:10]} Bxd2 {[%emt 0:00:10]} 41. Rc7 {[%emt 0:00:10]} Bd5 {[%emt 0:00:10]} 42. Rxg7+ {[%emt 0:00:10]} Kh8 {[%emt 0:00:10]} 43. Rd7 {[%emt 0:00:10]} Bxe6 {[%emt 0:00:10]} 44. fxe6 {[%emt 0:00:10]} Rxe6 {[%emt 0:00:10]} 45. d5 {[%emt 0:00:10]} Rb6 {[%emt 0:00:19]} 46. d6 {[%emt 0:00:10]} a5 {[%emt 0:02:13]} 47. Kf2 {[%emt 0:00:10]} Bb4 {[%emt 0:00:10]} 48. Rd8+ {[%emt 0:00:10]} Kg7 {[%emt 0:00:10]} 49. d7 {[%emt 0:00:10]} Rd6 {[%emt 0:00:10]} 50. h4 {[%emt 0:00:10]} Rd4 {[%emt 0:00:18]} 51. h5 {[%emt 0:00:10]} Be7 {[%emt 0:00:10]} 52. Ra8 {[%emt 0:00:10]} a4 {[%emt 0:00:22]} 53. Ra7 {[%emt 0:00:10]} Kh6 {[%emt 0:00:10]} 54. Ke3 {[%emt 0:00:10]} Rd1 {[%emt 0:00:10]} 55. Rxa4 {[%emt 0:00:10]} Rxd7 {[%emt 0:00:10]} 56. g4 {[%emt 0:00:10]} Rd5 {[%emt 0:00:10]} 57. Ke4 {[%emt 0:00:10]} Re5+ {[%emt 0:00:10]} 58. Kf4 {[%emt 0:00:10]} Bc5 {[%emt 0:00:10]} 59. Ra8 {[%emt 0:00:10]} Be3+ {[%emt 0:00:10]} 60. Kf3 {[%emt 0:00:10]} Bg5 {[%emt 0:00:10]} 61. Rg8 {[%emt 0:00:10]} Kh7 {[%emt 0:00:10]} 62. Ra8 {[%emt 0:00:10]} Re3+ {[%emt 0:00:10]} 63. Kf2 {[%emt 0:00:10]} Rb3 {[%emt 0:00:10]} 64. Rc8 {[%emt 0:00:10]} Bh4+ {[%emt 0:00:10]} 65. Ke2 {[%emt 0:00:10]} Rg3 {[%emt 0:00:10]} 66. Rc4 {[%emt 0:00:10]} Kh6 {[%emt 0:00:10]} 67. Ra4 {[%emt 0:00:10]} Kg5 {[%emt 0:00:10]} 68. Ra5+ {[%emt 0:00:10]} Kxg4 {[%emt 0:00:10]} 69. h6 {[%emt 0:00:10]} Bg5 {[%emt 0:00:22]} 70. Ra4+ {[%emt 0:00:10]} Bf4 {[%emt 0:00:10]} 71. h7 {[%emt 0:00:10]} Rh3 {[%emt 0:00:10]} 72. Ra7 {[%emt 0:00:10]} f5 {[%emt 0:00:20]} 73. Kf2 {[%emt 0:00:10]} Be5 {[%emt 0:00:12]} 74. Kg2 {[%emt 0:00:10]} Rh2+ {[%emt 0:00:10]} 75. Kg1 {[%emt 0:00:10]} Rh6 {[%emt 0:00:10]} 76. Re7 {[%emt 0:00:10]} Bf6 {[%emt 0:00:10]} 77. Rf7 {[%emt 0:00:10]} Kg5 {[%emt 0:00:10]} 0-1

[Event "GCT Cote d Ivoire Rapid 2019"]
[Site "Abidjan"]
[Date "2019.05.08"]
[Round "3.3"]
[White "Amin, Bassem"]
[Black "So, Wesley"]
[Result "0-1"]
[ECO "B51"]
[WhiteElo "2683"]
[BlackElo "2772"]
[Annotator "RC"]
[PlyCount "90"]
[EventDate "2019.05.05"]
[EventType "tourn"]
[SourceTitle "playchess.com"]
[Source "ChessBase"]
[SourceQuality "1"]
[TimeMode "Bronstein"]
[TimeControl "1500+10"]

1. e4 {[%emt 0:00:00]} c5 {[%emt 0:00:00]} 2. Nf3 {[%emt 0:00:00]} d6 {[%emt 0:00:00]} 3. Bb5+ {[%emt 0:00:00]} Nd7 {[%emt 0:00:00]} 4. O-O {[%emt 0:00:52]} a6 {[%emt 0:00:00]} 5. Bd3 {[%emt 0:00:10]} Ngf6 {[%emt 0:00:00]} 6. Re1 {[%emt 0:00:10]} e6 {[%emt 0:00:02]} 7. c3 {[%emt 0:00:58]} b5 {[%emt 0:00:02]} 8. Bc2 {[%emt 0:00:10]} c4 {[%emt 0:00:05]} 9. a4 {[%emt 0:00:10]} Bb7 {[%emt 0:00:05]} 10. d4 {[%emt 0:00:10]} cxd3 {[%emt 0:00:05]} 11. Qxd3 {[%emt 0:00:10]} Nc5 {[%emt 0:02:34]} 12. Qe2 {[%emt 0:00:10]} bxa4 {[%emt 0:00:12]} 13. Be3 {[%emt 0:00:10]} Nfxe4 {[%emt 0:02:28]} 14. Nbd2 {[%emt 0:00:24]} Nxd2 {[%emt 0:04:01]} 15. Nxd2 {[%emt 0:00:10]} Rc8 {[%emt 0:01:32]} 16. Bxc5 {[%emt 0:02:01]} Rxc5 {[%emt 0:00:10]} 17. Bxa4+ {[%emt 0:00:10]} Ke7 {[%emt 0:00:10]} 18. Nb3 {[%emt 0:02:16]} Rg5 {[%emt 0:00:14]} 19. g3 {[%emt 0:00:10]} g6 {[%emt 0:02:53]} 20. Qc4 {[%emt 0:06:23]} Bg7 {[%emt 0:00:50]} 21. Rad1 {[%emt 0:00:10]} Qb6 {[%emt 0:00:29]} 22. Nd4 {[%emt 0:03:18]} Re5 {[%emt 0:00:16]} 23. Nc6+ {[%emt 0:05:07]} Bxc6 {[%emt 0:00:10]} 24. Qxc6 {[%emt 0:00:10]} Qxc6 {[%emt 0:00:17]} 25. Bxc6 {[%emt 0:00:10]} Rc5 {[%emt 0:00:26]} 26. Be4 {[%emt 0:00:27]} Rb8 {[%emt 0:00:13]} 27. Re2 {[%emt 0:00:10]} Rcb5 {[%emt 0:01:56]} 28. Rdd2 {[%emt 0:00:10]} R5b6 {[%emt 0:00:10]} 29. Kf1 {[%emt 0:00:38]} a5 {[%emt 0:00:11]} 30. Rc2 {[%emt 0:00:33]} a4 {[%emt 0:00:19]} 31. Bd5 {[%emt 0:00:17]} Kf8 {[%emt 0:02:36]} 32. Ba2 {[%emt 0:00:10]} d5 {[%emt 0:00:17]} 33. h4 {[%emt 0:00:49]} d4 {[%emt 0:00:59]} 34. Red2 {[%emt 0:00:50]} d3 {[%emt 0:00:10]} 35. Rxd3 {[%emt 0:00:26]} Rxb2 {[%emt 0:00:10]} 36. Rxb2 {[%emt 0:00:10]} Rxb2 {[%emt 0:00:10]} 37. Bc4 {[%emt 0:00:10]} Ke7 {[%emt 0:00:11]} 38. Re3 {[%emt 0:00:40]} a3 {[%emt 0:00:10]} 39. Re2 {[%emt 0:00:10]} Bxc3 {[%emt 0:00:29]} 40. Rxb2 {[%emt 0:00:10]} Bxb2 {[%emt 0:00:13]} 41. Ke2 {[%emt 0:00:10]} h5 {[%emt 0:00:10]} 42. Kd3 {[%emt 0:00:22]} Kd6 {[%emt 0:00:10]} 43. Bb3 {[%emt 0:01:16]} Kc5 {[%emt 0:00:10]} 44. Ba2 {[%emt 0:00:11]} Bd4 {[%emt 0:00:10]} 45. f3 {[%emt 0:00:10]} Bf2 {Kd4+} 0-1

[Event "GCT Cote d Ivoire Rapid 2019"]
[Site "Abidjan"]
[Date "2019.05.08"]
[Round "3.5"]
[White "Ding, Liren"]
[Black "Wei, Yi"]
[Result "0-1"]
[ECO "D85"]
[WhiteElo "2786"]
[BlackElo "2737"]
[Annotator "ChessBase"]
[PlyCount "136"]
[EventDate "2019.05.05"]
[EventType "tourn"]
[SourceTitle "playchess.com"]
[Source "ChessBase"]
[SourceQuality "1"]
[TimeMode "Bronstein"]
[TimeControl "1500+10"]

1. d4 {[%emt 0:00:00]} Nf6 {[%emt 0:00:00]} 2. c4 {[%emt 0:00:00]} g6 {[%emt 0:00:00]} 3. Nc3 {[%emt 0:00:00]} d5 {[%emt 0:00:00]} 4. cxd5 {[%emt 0:00:00]} Nxd5 {[%emt 0:00:00]} 5. e4 {[%emt 0:00:00]} Nxc3 {[%emt 0:00:00]} 6. bxc3 {[%emt 0:00:00]} Bg7 {[%emt 0:00:00]} 7. Be3 {[%emt 0:00:00]} c5 {[%emt 0:00:00]} 8. Rc1 {[%emt 0:00:00]} O-O {[%emt 0:00:47]} 9. Nf3 {[%emt 0:00:00]} Qa5 {[%emt 0:00:26]} 10. Qd2 {[%emt 0:00:00]} Nd7 {[%emt 0:00:11]} 11. Bd3 {[%emt 0:00:13]} e5 {[%emt 0:00:10]} 12. Bh6 {[%emt 0:00:40]} exd4 {[%emt 0:01:42]} 13. Bxg7 {[%emt 0:00:10]} Kxg7 {[%emt 0:00:10]} 14. cxd4 {[%emt 0:00:10]} Qxd2+ {[%emt 0:00:25]} 15. Kxd2 {[%emt 0:00:10]} b6 {[%emt 0:01:47]} 16. d5 {[%emt 0:00:31]} Bb7 {[%emt 0:02:21]} 17. a4 {[%emt 0:00:32]} Rfe8 {[%emt 0:02:55]} 18. a5 {[%emt 0:00:27]} Rad8 {[%emt 0:00:10]} 19. Rhe1 {[%emt 0:01:36]} f5 {[%emt 0:01:00]} 20. exf5 {[%emt 0:03:18]} Bxd5 {[%emt 0:00:51]} 21. fxg6 {[%emt 0:00:12]} hxg6 {[%emt 0:00:50]} 22. Rxe8 {[%emt 0:02:35]} Rxe8 {[%emt 0:00:10]} 23. axb6 {[%emt 0:00:32]} axb6 {[%emt 0:00:10]} 24. Ra1 {[%emt 0:00:10]} Kf6 {[%emt 0:02:01]} 25. Bb5 {[%emt 0:01:43]} Rd8 {[%emt 0:00:40]} 26. Ne1 {[%emt 0:00:55]} Nf8 {[%emt 0:01:01]} 27. Kc3 {[%emt 0:01:02]} Ne6 {[%emt 0:00:10]} 28. Bf1 {[%emt 0:00:28]} Rb8 {[%emt 0:02:52]} 29. Nc2 {[%emt 0:00:12]} b5 {[%emt 0:01:42]} 30. Ne3 {[%emt 0:00:10]} Ke5 {[%emt 0:00:23]} 31. Ra6 {[%emt 0:02:29]} b4+ {[%emt 0:02:20]} 32. Kb2 {[%emt 0:00:10]} Ra8 {[%emt 0:00:28]} 33. Rxa8 {[%emt 0:02:38]} Bxa8 {[%emt 0:00:10]} 34. h4 {[%emt 0:00:10]} Be4 {[%emt 0:01:21]} 35. f3 {[%emt 0:01:03]} Bc6 {[%emt 0:00:27]} 36. Bc4 {[%emt 0:01:32]} Nf4 {[%emt 0:00:22]} 37. Bf7 {[%emt 0:00:32]} Ba4 {[%emt 0:00:40]} 38. g3 {[%emt 0:03:31]} Nd3+ {[%emt 0:00:10]} 39. Kb1 {[%emt 0:00:10]} Kd4 {[%emt 0:00:13]} 40. Ng4 {[%emt 0:00:10]} Kc3 {[%emt 0:00:15]} 41. Ne3 {[%emt 0:00:10]} Ne5 {[%emt 0:00:11]} 42. Be6 {[%emt 0:00:46]} Nxf3 {[%emt 0:00:10]} 43. Nd5+ {[%emt 0:00:10]} Kd4 {[%emt 0:00:20]} 44. Nf4 {[%emt 0:00:30]} c4 {[%emt 0:00:10]} 45. Nxg6 {[%emt 0:00:10]} c3 {[%emt 0:00:13]} 46. Nf4 {[%emt 0:00:10]} Nd2+ {[%emt 0:00:19]} 47. Kc1 {[%emt 0:00:10]} b3 {[%emt 0:00:10]} 48. Ne2+ {[%emt 0:00:10]} Kd3 {[%emt 0:00:10]} 49. Nf4+ {[%emt 0:00:10]} Kd4 {[%emt 0:00:25]} 50. Ne2+ {[%emt 0:00:10]} Kd3 {[%emt 0:00:10]} 51. Nf4+ {[%emt 0:00:10]} Ke3 {[%emt 0:00:11]} 52. Bxb3 {[%emt 0:00:10]} Bxb3 {[%emt 0:00:10]} 53. h5 {[%emt 0:00:10]} Ne4 {[%emt 0:00:14]} 54. h6 {[%emt 0:00:10]} Nf6 {[%emt 0:00:11]} 55. Ng2+ {[%emt 0:00:25]} Kf2 {[%emt 0:00:10]} 56. Nf4 {[%emt 0:00:10]} Ke3 {[%emt 0:00:10]} 57. Ng2+ {[%emt 0:00:10]} Kf3 {[%emt 0:00:12]} 58. Nf4 {[%emt 0:00:10]} Nh7 {[%emt 0:00:11]} 59. Nd3 {[%emt 0:00:10]} Ke3 {[%emt 0:00:10]} 60. Nc5 {[%emt 0:00:10]} Bf7 {[%emt 0:00:10]} 61. Kc2 {[%emt 0:00:17]} Kd4 {[%emt 0:00:10]} 62. Na4 {[%emt 0:00:10]} Bg6+ {[%emt 0:00:10]} 63. Kb3 {[%emt 0:00:10]} Bf7+ {[%emt 0:00:10]} 64. Kc2 {[%emt 0:00:10]} Bg6+ {[%emt 0:00:10]} 65. Kb3 {[%emt 0:00:10]} c2 {[%emt 0:00:10]} 66. Kb2 {[%emt 0:00:10]} Ng5 {[%emt 0:00:10]} 67. Nb6 {[%emt 0:00:11]} Nf3 {[%emt 0:00:10]} 68. Nd7 {[%emt 0:00:10]} Ng1 {[%emt 0:00:10]} 0-1

[Event "GCT Cote d Ivoire Rapid 2019"]
[Site "Abidjan"]
[Date "2019.05.09"]
[Round "4.3"]
[White "Nakamura, Hikaru"]
[Black "Topalov, Veselin"]
[Result "1-0"]
[ECO "A06"]
[WhiteElo "2805"]
[BlackElo "2736"]
[Annotator "ChessBase"]
[PlyCount "87"]
[EventDate "2019.05.05"]
[EventType "tourn"]
[SourceTitle "playchess.com"]
[Source "ChessBase"]
[SourceQuality "1"]
[TimeMode "Bronstein"]
[TimeControl "1500+10"]

1. Nf3 {[%emt 0:00:00]} d5 {[%emt 0:00:00]} 2. e3 {[%emt 0:00:00]} Nf6 {[%emt 0:00:28]} 3. c4 {[%emt 0:00:00]} c6 {[%emt 0:00:10]} 4. Nc3 {[%emt 0:00:20]} Nbd7 {[%emt 0:00:22]} 5. Qc2 {[%emt 0:00:23]} e5 {[%emt 0:00:24]} 6. cxd5 {[%emt 0:00:15]} Nxd5 {[%emt 0:00:10]} 7. a3 {[%emt 0:02:40]} Bd6 {[%emt 0:02:21]} 8. d4 {[%emt 0:00:10]} O-O {[%emt 0:02:24]} 9. Bd3 {[%emt 0:00:10]} h6 {[%emt 0:00:10]} 10. O-O {[%emt 0:00:21]} exd4 {[%emt 0:00:10]} 11. Nxd5 {[%emt 0:00:13]} cxd5 {[%emt 0:00:10]} 12. Nxd4 {[%emt 0:00:10]} Nc5 {[%emt 0:00:45]} 13. Be2 {[%emt 0:02:26]} Re8 {[%emt 0:02:44]} 14. Bd2 {[%emt 0:01:58]} Bd7 {[%emt 0:01:31]} 15. Bf3 {[%emt 0:03:21]} Ne4 {[%emt 0:00:10]} 16. Bb4 {[%emt 0:00:29]} Be5 {[%emt 0:00:26]} 17. Rad1 {[%emt 0:00:24]} Qb6 {[%emt 0:02:15]} 18. Qb3 {[%emt 0:03:30]} Bxd4 {[%emt 0:03:50]} 19. Rxd4 {[%emt 0:00:10]} a5 {[%emt 0:00:34]} 20. Qxd5 {[%emt 0:00:31]} Bb5 {[%emt 0:04:48]} 21. Bxe4 {[%emt 0:01:04]} Bxf1 {[%emt 0:00:10]} 22. Bc5 {[%emt 0:03:02]} Qa6 {[%emt 0:01:03]} 23. Qf5 {[%emt 0:00:19]} Rxe4 {[%emt 0:00:15]} 24. Qxe4 {[%emt 0:00:11]} Rc8 {[%emt 0:00:10]} 25. h4 {[%emt 0:00:36]} b6 {[%emt 0:00:30]} 26. Rd6 {[%emt 0:00:50]} Qb5 {[%emt 0:00:10]} 27. Bd4 {[%emt 0:00:10]} Bd3 {[%emt 0:00:35]} 28. Qg4 {[%emt 0:00:10]} Rc1+ {[%emt 0:00:10]} 29. Kh2 {[%emt 0:00:10]} Bg6 {[%emt 0:00:10]} 30. Rxb6 {[%emt 0:00:10]} Qd5 {[%emt 0:00:24]} 31. h5 {[%emt 0:00:21]} Qxh5+ {[%emt 0:00:13]} 32. Qxh5 {[%emt 0:00:10]} Bxh5 {[%emt 0:00:10]} 33. Rb5 {[%emt 0:00:10]} Bg6 {[%emt 0:00:10]} 34. Rxa5 {[%emt 0:00:10]} Rc2 {[%emt 0:00:10]} 35. Kg3 {[%emt 0:00:21]} h5 {[%emt 0:00:10]} 36. Rg5 {[%emt 0:00:15]} Kh7 {[%emt 0:00:10]} 37. f3 {[%emt 0:00:23]} Rd2 {[%emt 0:00:35]} 38. a4 {[%emt 0:00:15]} f6 {[%emt 0:00:10]} 39. Rxg6 {[%emt 0:01:02]} Kxg6 {[%emt 0:00:10]} 40. a5 {[%emt 0:00:10]} Rd1 {[%emt 0:00:58]} 41. a6 {[%emt 0:00:10]} Ra1 {[%emt 0:00:10]} 42. a7 {[%emt 0:00:10]} Kf7 {[%emt 0:00:10]} 43. b4 {[%emt 0:00:10]} Ra2 {[%emt 0:00:10]} 44. b5 {[%emt 0:00:10]} 1-0

[Event "GCT Cote d Ivoire Rapid 2019"]
[Site "Abidjan"]
[Date "2019.05.09"]
[Round "5.5"]
[White "Ding, Liren"]
[Black "Nepomniachtchi, Ian"]
[Result "1-0"]
[ECO "A50"]
[WhiteElo "2786"]
[BlackElo "2776"]
[Annotator "RC"]
[PlyCount "101"]
[EventDate "2019.05.05"]
[EventType "tourn"]
[SourceTitle "playchess.com"]
[Source "ChessBase"]
[SourceQuality "1"]
[TimeMode "Bronstein"]
[TimeControl "1500+10"]

1. d4 {[%emt 0:00:00]} Nf6 {[%emt 0:00:00]} 2. c4 {[%emt 0:00:00]} g6 {[%emt 0:00:00]} 3. f3 {[%emt 0:00:00]} c5 {[%emt 0:00:00]} 4. d5 {[%emt 0:00:00]} e6 {[%emt 0:00:00]} 5. e4 {[%emt 0:00:00]} d6 {[%emt 0:00:00]} 6. Nc3 {[%emt 0:00:00]} Bg7 {[%emt 0:00:00]} 7. Nge2 {[%emt 0:00:00]} exd5 {[%emt 0:00:00]} 8. cxd5 {[%emt 0:00:00]} a6 {[%emt 0:00:00]} 9. a4 {[%emt 0:00:00]} O-O {[%emt 0:00:00]} 10. Ng3 {[%emt 0:00:00]} Nbd7 {[%emt 0:00:00]} 11. Be2 {[%emt 0:00:00]} Ne8 {[%emt 0:00:02]} 12. O-O {[%emt 0:00:00]} Rb8 {[%emt 0:00:03]} 13. Re1 {[%emt 0:00:00]} Nc7 {[%emt 0:00:04]} 14. Bf4 {[%emt 0:00:00]} Qe7 {[%emt 0:00:26]} 15. Qd2 {[%emt 0:00:00]} Re8 {[%emt 0:00:11]} 16. a5 {[%emt 0:05:29]} b5 {[%emt 0:00:10]} 17. axb6 {[%emt 0:00:10]} Rxb6 {[%emt 0:00:10]} 18. Ra5 {[%emt 0:00:20]} Rb4 {[%emt 0:00:40]} 19. Nf1 {[%emt 0:00:39]} Nb5 {[%emt 0:00:49]} 20. Nxb5 {[%emt 0:00:42]} axb5 {[%emt 0:00:41]} 21. Rxb5 {[%emt 0:00:10]} Rd4 {[%emt 0:00:10]} 22. Qa5 {[%emt 0:01:00]} f5 {[%emt 0:00:10]} 23. Qc7 {[%emt 0:00:30]} Be5 {[%emt 0:05:08]} 24. Bxe5 {[%emt 0:01:38]} Qxe5 {[%emt 0:00:10]} 25. Ra5 {[%emt 0:00:10]} Rb4 {[%emt 0:01:20]} 26. Ra8 {[%emt 0:01:17]} Nb6 {[%emt 0:00:59]} 27. Raa1 {[%emt 0:04:48]} fxe4 {[%emt 0:00:50]} 28. fxe4 {[%emt 0:00:10]} Rxe4 {[%emt 0:01:18]} 29. Qxb6 {[%emt 0:00:10]} Rxe2 {[%emt 0:00:10]} 30. Rxe2 {[%emt 0:00:10]} Qxe2 {[%emt 0:00:10]} 31. Qxd6 {[%emt 0:00:21]} Qxb2 {[%emt 0:01:10]} 32. Rd1 {[%emt 0:00:10]} c4 {[%emt 0:03:41]} 33. Qc6 {[%emt 0:00:19]} Rf8 {[%emt 0:01:35]} 34. Qxc4 {[%emt 0:00:10]} Qf2+ {[%emt 0:00:10]} 35. Kh1 {[%emt 0:00:10]} Bg4 {[%emt 0:03:31]} 36. d6+ {[%emt 0:00:10]} Rf7 {[%emt 0:00:57]} 37. Rb1 {[%emt 0:01:07]} Be2 {[%emt 0:00:23]} 38. Qc8+ {[%emt 0:00:37]} Rf8 {[%emt 0:01:32]} 39. Qe6+ {[%emt 0:00:10]} Kg7 {[%emt 0:00:10]} 40. Qe5+ {[%emt 0:00:11]} Kg8 {[%emt 0:00:28]} 41. Ne3 {[%emt 0:00:26]} Bf3 {[%emt 0:01:31]} 42. h3 {[%emt 0:00:10]} Bc6 {[%emt 0:00:10]} 43. Nd5 {[%emt 0:02:11]} Re8 {[%emt 0:00:38]} 44. Nf6+ {[%emt 0:01:36]} Kf8 {[%emt 0:00:10]} 45. Nxh7+ Kg8 46. Nf6+ {[%emt 0:00:10]} Kf8 {[%emt 0:00:10]} 47. Qg5 {[%emt 0:00:57]} Re6 {[%emt 0:00:10]} 48. d7 {[%emt 0:00:11]} Re1+ {[%emt 0:00:14]} 49. Rxe1 {[%emt 0:00:10]} Qxe1+ {[%emt 0:00:10]} 50. Kh2 {[%emt 0:00:10]} Ke7 {[%emt 0:00:12]} 51. Qc5+ {[%emt 0:00:10]} 1-0

[Event "GCT Cote d Ivoire Rapid 2019"]
[Site "Abidjan"]
[Date "2019.05.09"]
[Round "6.5"]
[White "Karjakin, Sergey"]
[Black "Amin, Bassem"]
[Result "1/2-1/2"]
[ECO "C84"]
[WhiteElo "2773"]
[BlackElo "2683"]
[Annotator "ChessBase"]
[PlyCount "99"]
[EventDate "2019.05.05"]
[EventType "tourn"]
[SourceTitle "playchess.com"]
[Source "ChessBase"]
[SourceQuality "1"]
[TimeMode "Bronstein"]
[TimeControl "1500+10"]

1. e4 {[%emt 0:00:00]} e5 {[%emt 0:00:00]} 2. Nf3 {[%emt 0:00:00]} Nc6 {[%emt 0:00:00]} 3. Bb5 {[%emt 0:00:00]} a6 {[%emt 0:00:00]} 4. Ba4 {[%emt 0:00:00]} Nf6 {[%emt 0:00:00]} 5. O-O {[%emt 0:00:00]} Be7 {[%emt 0:00:00]} 6. d3 {[%emt 0:00:00]} d6 {[%emt 0:00:02]} 7. c3 {[%emt 0:00:00]} O-O {[%emt 0:00:02]} 8. Re1 {[%emt 0:00:00]} Re8 {[%emt 0:00:02]} 9. h3 {[%emt 0:00:00]} b5 {[%emt 0:00:39]} 10. Bc2 {[%emt 0:00:00]} Bb7 {[%emt 0:00:36]} 11. Nbd2 {[%emt 0:00:31]} Bf8 {[%emt 0:00:13]} 12. d4 {[%emt 0:00:12]} Nb8 {[%emt 0:00:10]} 13. a4 {[%emt 0:00:29]} Nbd7 {[%emt 0:00:10]} 14. Bd3 {[%emt 0:00:10]} c6 {[%emt 0:00:27]} 15. b3 {[%emt 0:00:26]} Qc7 {[%emt 0:00:15]} 16. Bb2 {[%emt 0:00:46]} g6 {[%emt 0:00:10]} 17. Qc2 {[%emt 0:00:52]} Nh5 {[%emt 0:00:34]} 18. Bf1 {[%emt 0:00:13]} Nf4 {[%emt 0:00:10]} 19. b4 {[%emt 0:01:22]} Nb6 {[%emt 0:00:48]} 20. axb5 {[%emt 0:01:32]} cxb5 {[%emt 0:00:33]} 21. Qb3 {[%emt 0:01:48]} Rac8 {[%emt 0:01:07]} 22. Rac1 {[%emt 0:01:45]} Nc4 {[%emt 0:00:52]} 23. g3 {[%emt 0:00:47]} Ne6 {[%emt 0:01:28]} 24. dxe5 {[%emt 0:01:29]} Nxd2 {[%emt 0:00:38]} 25. Nxd2 {[%emt 0:00:10]} dxe5 {[%emt 0:00:10]} 26. c4 {[%emt 0:00:45]} Qd6 {[%emt 0:01:46]} 27. Bc3 {[%emt 0:00:10]} Nd4 {[%emt 0:00:10]} 28. Bxd4 {[%emt 0:00:11]} Qxd4 {[%emt 0:02:04]} 29. Nf3 {[%emt 0:00:10]} Qd7 {[%emt 0:00:19]} 30. h4 {[%emt 0:01:47]} Bh6 {[%emt 0:03:08]} 31. Rc3 {[%emt 0:00:11]} bxc4 {[%emt 0:03:46]} 32. Bxc4 {[%emt 0:00:10]} Qe7 {[%emt 0:00:10]} 33. Rd3 {[%emt 0:02:54]} Red8 {[%emt 0:01:30]} 34. Bd5 {[%emt 0:00:10]} Bxd5 {[%emt 0:01:22]} 35. Rxd5 {[%emt 0:01:17]} Rxd5 {[%emt 0:00:10]} 36. exd5 {[%emt 0:00:10]} e4 {[%emt 0:00:18]} 37. d6 {[%emt 0:01:13]} Qxd6 {[%emt 0:01:38]} 38. Rxe4 {[%emt 0:00:10]} Qf6 {[%emt 0:00:19]} 39. Kg2 {[%emt 0:00:26]} Rc3 {[%emt 0:00:57]} 40. Re8+ {[%emt 0:00:15]} Bf8 {[%emt 0:00:20]} 41. Qd5 {[%emt 0:00:39]} Qc6 {[%emt 0:00:12]} 42. Qxc6 {[%emt 0:00:16]} Rxc6 {[%emt 0:00:10]} 43. Ne5 {[%emt 0:00:33]} Rd6 {[%emt 0:00:10]} 44. Rb8 {[%emt 0:00:17]} Rd5 {[%emt 0:00:15]} 45. Nc6 {[%emt 0:00:43]} Kg7 {[%emt 0:00:29]} 46. Kf3 {[%emt 0:00:22]} Rd6 {[%emt 0:00:17]} 47. Na5 Rd4 {[%emt 0:00:19]} 48. Nc6 {[%emt 0:00:28]} Rd6 {[%emt 0:00:10]} 49. Na5 {[%emt 0:00:16]} Rd4 {[%emt 0:00:10]} 50. Nc6 {[%emt 0:00:10]} 1/2-1/2